bitfinex/quotes_ETHUSD_20250430
["timestamp","ask_amount","ask_price","bid_price","bid_amount"]
[1745988244056,6.15,1811.0,1810.6,2.51444026]
[1745988244362,0.71909289,1810.7,1810.6,2.51444026]
[1745988244565,6.15,1811.0,1810.6,8.90176925]
[1745988244860,0.31037974,1810.9,1810.6,13.28453773]
[1745988245163,1.0284777,1810.9,1810.6,13.28453773]
[1745988245367,1.0284777,1810.9,1810.8,1.3151]
[1745988245869,1.0284777,1810.9,1810.8,3.00524026]
[1745988246067,0.71809796,1810.9,1810.8,3.85803565]
[1745988247770,0.71809796,1810.9,1810.8,5.55803565]
[1745988255073,0.71809796,1810.9,1810.8,11.08045667]
[1745988255648,0.71809796,1810.9,1810.8,5.55803565]
[1745988259254,6.953,1811.3,1810.8,5.55803565]
[1745988259587,0.71995512,1811.2,1810.8,4.70524026]
[1745988259759,0.71995512,1811.2,1811.0,1.69014026]
[1745988263886,0.71995512,1811.2,1811.1,1.3065]
[1745988264085,0.7593,1811.6,1811.2,5.52111328]
[1745988264288,0.7593,1811.6,1811.4,1.69014026]
[1745988264492,6.15,1811.7,1811.4,1.69014026]
[1745988264789,6.9686,1811.8,1811.5,0.55]
[1745988266394,8.11906,1811.8,1811.5,0.55]
[1745988267007,8.11906,1811.8,1811.2,0.7937]
[1745988267187,0.8249,1811.7,1811.3,0.55]
[1745988267386,1.13449937,1811.7,1811.3,0.55]
[1745988267910,1.97799531,1811.7,1811.3,0.55]
[1745988268205,0.30959937,1811.6,1811.3,0.55]
[1745988268413,0.8249,1811.5,1811.2,1.69014026]
[1745988269108,0.8249,1811.5,1811.1,5.086]
[1745988269109,0.8249,1811.5,1811.1,6.77614026]
[1745988269812,0.8249,1811.5,1811.1,2.24014026]
[1745988270212,0.30967945,1811.4,1811.1,2.24014026]
[1745988271200,0.7957,1811.3,1811.1,0.55]
[1745988273626,6.15,1811.2,1810.8,1.7]
[1745988273830,6.84457,1811.2,1810.8,3.44535736]
[1745988274033,6.15,1811.2,1810.8,3.39014026]
[1745988274698,0.7835,1811.1,1810.8,1.7]
[1745988278036,0.72486227,1811.0,1810.8,1.7]
[1745988278608,0.72486227,1811.0,1810.9,1.69014026]
[1745988278811,0.72486227,1811.0,1810.9,2.24014026]
[1745988279123,6.15,1811.2,1811.0,0.55]
[1745988279300,0.72486227,1811.1,1811.0,0.55]
[1745988279499,6.15,1811.2,1811.0,0.55]
[1745988279695,0.72486227,1811.1,1811.0,0.55]
[1745988279901,6.15,1811.2,1811.0,0.55]
[1745988280129,0.72486227,1811.1,1811.0,0.55]
[1745988280299,6.15,1811.2,1811.0,0.55]
[1745988280498,0.72486227,1811.1,1811.0,0.55]
[1745988280737,6.15,1811.2,1811.0,0.55]
[1745988280931,0.72486227,1811.1,1811.0,0.55]
[1745988281444,6.15,1811.2,1811.0,0.55]
[1745988281649,0.72486227,1811.1,1811.0,0.55]
[1745988281948,6.15,1811.2,1811.0,0.55]
[1745988282122,0.72373519,1811.1,1811.0,0.55]
[1745988282324,6.15,1811.2,1811.0,0.55]
[1745988282523,0.72373519,1811.1,1811.0,0.55]
[1745988282751,6.15,1811.2,1811.0,0.55]
[1745988283046,0.72373519,1811.1,1811.0,0.55]
[1745988283341,6.15,1811.2,1811.0,0.55]
[1745988283545,0.72373519,1811.1,1811.0,0.55]
[1745988283743,6.15,1811.2,1811.0,0.55]
[1745988283947,0.72373519,1811.1,1811.0,0.55]
[1745988284150,6.15,1811.2,1811.0,0.55]
[1745988284317,0.72373519,1811.1,1811.0,0.55]
[1745988284516,6.15,1811.2,1811.0,0.55]
[1745988284716,0.72360258,1811.1,1811.0,0.55]
[1745988285088,6.15,1811.2,1811.0,0.55]
[1745988285216,0.72360258,1811.1,1811.0,0.55]
[1745988285552,6.15,1811.2,1811.0,0.55]
[1745988285753,0.72360258,1811.1,1811.0,0.55]
[1745988286048,6.15,1811.2,1811.0,0.55]
[1745988286236,0.72360258,1811.1,1811.0,0.55]
[1745988286967,6.15,1811.2,1811.0,0.55]
[1745988287121,0.72360258,1811.1,1811.0,0.55]
[1745988287315,6.15,1811.2,1811.0,0.55]
[1745988287530,0.72360258,1811.1,1811.0,0.55]
[1745988287831,6.15,1811.2,1811.0,0.55]
[1745988288017,0.72360258,1811.1,1811.0,0.55]
[1745988288350,6.15,1811.2,1811.0,0.55]
[1745988288548,0.72360258,1811.1,1811.0,0.55]
[1745988288737,6.15,1811.2,1811.0,1.32621499]
[1745988288949,0.72360258,1811.1,1811.0,1.32621499]
[1745988289259,6.15,1811.2,1811.0,1.32621499]
[1745988289461,0.7238678,1811.1,1811.0,2.12831499]
[1745988289829,6.15,1811.2,1811.0,2.12831499]
[1745988290031,0.7238678,1811.1,1811.0,2.12831499]
[1745988290463,6.15,1811.2,1811.0,2.12831499]
[1745988290668,0.7238678,1811.1,1811.0,2.12831499]
[1745988290965,6.15,1811.2,1811.0,2.12831499]
[1745988291127,0.7238678,1811.1,1811.0,2.12831499]
[1745988291462,6.15,1811.2,1811.0,2.12831499]
[1745988291463,0.7623,1811.4,1811.0,2.12831499]
[1745988291661,0.7238678,1811.1,1811.0,1.3521]
[1745988291852,0.7623,1811.4,1810.9,2.24014026]
[1745988292047,0.7238678,1811.1,1810.9,2.24014026]
[1745988292251,0.31009562,1811.3,1810.9,2.24014026]
[1745988292455,0.7238678,1811.0,1810.9,2.24014026]
[1745988292749,0.7238678,1811.0,1810.9,3.08345418]
[1745988292927,0.7623,1811.4,1810.9,3.08345418]
[1745988293128,0.7238678,1811.3,1810.9,2.24014026]
[1745988293328,0.7623,1811.4,1810.9,2.24014026]
[1745988293566,0.7238678,1811.3,1810.9,2.24014026]
[1745988293767,0.7623,1811.4,1810.9,2.24014026]
[1745988294063,0.7238678,1811.3,1810.9,2.24014026]
[1745988294558,0.72406671,1811.2,1810.9,2.24014026]
[1745988294763,0.31007994,1811.2,1810.9,2.24014026]
[1745988294965,0.72406671,1811.1,1810.9,2.24014026]
[1745988295260,0.31007994,1811.2,1810.9,3.08345418]
[1745988295459,0.72406671,1811.0,1810.9,3.08345418]
[1745988295641,0.7623,1811.4,1810.9,3.08345418]
[1745988295841,0.72406671,1811.0,1810.9,2.24014026]
[1745988296142,0.7623,1811.4,1810.9,2.24014026]
[1745988296377,0.72406671,1811.3,1810.9,2.24014026]
[1745988296668,0.31031106,1811.3,1810.9,2.24014026]
[1745988296838,0.72406671,1811.2,1810.9,2.24014026]
[1745988297166,0.72406671,1811.2,1810.9,3.08345418]
[1745988297776,0.7623,1811.4,1810.9,3.08345418]
[1745988297958,0.72406671,1811.3,1810.9,2.24014026]
[1745988298142,0.31039334,1811.2,1810.9,2.24014026]
[1745988298343,0.72406671,1811.1,1810.9,2.24014026]
[1745988298649,0.31039334,1811.2,1810.9,2.24014026]
[1745988298875,0.72406671,1811.0,1810.9,2.24014026]
[1745988299042,0.72406671,1811.0,1810.9,3.63569506]
[1745988299242,0.7623,1811.4,1810.9,3.63569506]
[1745988299456,0.72406671,1811.0,1810.9,2.24014026]
[1745988299639,0.31036912,1811.3,1810.9,2.24014026]
[1745988300276,0.72406671,1811.2,1810.9,2.24014026]
[1745988300474,0.31036912,1811.1,1810.9,2.24014026]
[1745988300964,0.72406671,1811.0,1810.9,2.24014026]
[1745988301284,0.31036912,1811.1,1810.9,3.63569541]
[1745988301573,0.72406671,1811.0,1810.9,3.63569541]
[1745988301878,0.7623,1811.4,1810.9,3.63569541]
[1745988302264,0.72406671,1811.3,1811.1,6.07140917]
[1745988302473,1.03456968,1811.3,1811.2,2.99234026]
[1745988302771,1.03463599,1811.3,1811.2,2.99234026]
[1745988302977,0.31050297,1811.3,1811.2,8.51354167]
[1745988303138,0.31050297,1811.5,1811.3,0.55]
[1745988303338,0.72413302,1811.4,1811.3,0.55]
[1745988304378,6.15,1811.6,1811.3,0.55]
[1745988304779,0.72413302,1811.5,1811.3,0.55]
[1745988305862,0.72413302,1811.5,1811.3,0.84923403]
[1745988309882,0.72413302,1811.5,1811.4,1.7]
[1745988313884,0.72413302,1811.5,1811.3,0.84923403]
[1745988314085,0.72413302,1811.5,1811.4,3.08024092]
[1745988314255,0.72413302,1811.5,1811.4,8.54563206]
[1745988314449,6.15,1811.9,1811.4,9.98218361]
[1745988314658,6.9455,1812.0,1811.6,1.69014026]
[1745988315353,0.30979655,1811.9,1811.6,1.69014026]
[1745988315553,0.30979655,1811.9,1811.7,1.7]
[1745988315962,0.30979655,1811.9,1811.4,4.46159181]
[1745988316167,0.30979655,1811.9,1811.6,0.55]
[1745988317662,6.9455,1812.0,1811.6,0.55]
[1745988317991,6.15,1812.0,1811.8,1.69014026]
[1745988318202,6.9158,1812.2,1811.8,1.69014026]
[1745988318496,6.9158,1812.2,1811.8,2.49363698]
[1745988318976,6.15,1812.2,1811.8,2.54882214]
[1745988319183,6.15,1812.2,1811.8,2.49363698]
[1745988319982,4.535,1812.3,1811.9,0.55]
[1745988319983,6.15,1812.3,1811.9,0.55]
[1745988320186,6.15,1812.3,1812.1,0.55]
[1745988322815,0.73261665,1812.2,1812.1,0.55]
[1745988327619,0.73261665,1812.2,1811.9,2.4805]
[1745988327788,0.73261665,1812.2,1812.0,0.55]
[1745988332013,1.53451665,1812.2,1811.9,1.7]
[1745988343240,0.30990195,1812.1,1811.9,1.7]
[1745988343437,0.73473123,1812.0,1811.9,1.7]
[1745988344407,0.8019,1812.2,1811.9,1.7]
[1745988344710,0.73773203,1812.1,1811.9,1.7]
[1745988344917,0.7899,1812.0,1811.6,0.7771]
[1745988345164,0.31016105,1811.9,1811.6,0.7771]
[1745988345344,1.04789308,1811.9,1811.6,0.7771]
[1745988345524,1.04789308,1811.9,1811.5,0.7771]
[1745988345710,1.04789308,1811.9,1811.5,2.04523895]
[1745988345911,0.73773203,1811.9,1811.5,7.62056795]
[1745988346112,0.73773203,1811.9,1811.7,0.8295]
[1745988346312,0.73773203,1811.9,1811.8,0.55]
[1745988346546,5.2846,1812.2,1811.8,0.55]
[1745988346834,5.2846,1812.2,1811.8,1.45]
[1745988347140,0.73733465,1812.1,1811.8,1.45]
[1745988347639,1.0475773,1812.0,1811.8,1.45]
[1745988348531,0.73733465,1812.0,1811.8,1.50518695]
[1745988348714,0.73733465,1812.0,1811.8,7.02453995]
[1745988348913,0.7506,1812.2,1811.9,0.702454]
[1745988349123,0.73733465,1811.9,1811.8,1.45]
[1745988349323,0.7506,1812.2,1811.8,1.45]
[1745988349523,0.73733465,1811.9,1811.8,1.45]
[1745988349726,0.7506,1812.2,1811.8,1.45]
[1745988350238,1.04758364,1812.1,1811.8,1.45]
[1745988350438,1.04758364,1812.1,1811.8,2.68329887]
[1745988350653,0.73733465,1812.1,1811.8,2.68329887]
[1745988350852,0.7506,1812.2,1811.8,2.68329887]
[1745988351052,0.73733465,1812.1,1811.8,2.68329887]
[1745988351252,0.7506,1812.2,1811.8,2.68329887]
[1745988351459,0.73720218,1812.1,1811.8,2.68329887]
[1745988351644,0.7506,1812.2,1811.8,2.68329887]
[1745988351839,0.73720218,1812.1,1811.8,2.68329887]
[1745988352040,0.7506,1812.2,1811.8,2.68329887]
[1745988352243,1.04746002,1812.1,1811.8,2.68329887]
[1745988353262,0.73720218,1812.1,1811.8,2.68329887]
[1745988353470,0.7506,1812.2,1811.8,2.68329887]
[1745988353655,0.73720218,1812.1,1811.8,2.68329887]
[1745988353856,0.7506,1812.2,1811.8,2.68329887]
[1745988354054,0.73720218,1812.1,1811.8,2.68329887]
[1745988354246,0.7506,1812.2,1811.8,2.73848565]
[1745988354446,0.73720218,1812.1,1811.8,2.73848565]
[1745988354645,0.31032716,1812.1,1811.8,8.25773427]
[1745988354870,0.73720218,1812.0,1811.9,2.16587343]
[1745988355742,0.73720218,1812.0,1811.9,1.3401]
[1745988355945,6.15,1812.3,1811.9,1.3401]
[1745988356144,0.73680477,1812.0,1811.9,1.3401]
[1745988356348,0.31034528,1812.2,1811.9,1.3401]
[1745988356571,0.67552324,1812.0,1811.9,1.3401]
[1745988356733,0.31034528,1812.2,1811.9,1.68743989]
[1745988356931,0.67552324,1812.0,1811.9,1.3401]
[1745988357155,0.31034528,1812.0,1811.9,1.3401]
[1745988357360,0.98586852,1812.0,1811.9,1.3401]
[1745988357565,0.31034528,1812.0,1811.9,1.3401]
[1745988358068,0.98586852,1812.0,1811.9,1.3401]
[1745988360257,0.98586852,1812.0,1811.9,0.55]
[1745988365074,0.98586852,1812.0,1811.9,1.351]
[1745988365273,0.98586852,1812.0,1811.9,2.12803606]
[1745988365683,0.67552324,1812.0,1811.9,2.12803606]
[1745988365877,6.933,1812.3,1812.0,0.55]
[1745988366083,0.67552324,1812.2,1812.0,0.55]
[1745988366980,0.31027984,1812.1,1812.0,0.55]
[1745988367491,0.98580308,1812.1,1812.0,0.55]
[1745988367901,0.98580308,1812.1,1812.0,1.05705989]
[1745988370209,0.98580308,1812.1,1811.9,4.52059892]
[1745988370410,0.98580308,1812.1,1811.9,3.71959892]
[1745988371314,0.31027984,1812.0,1811.9,3.71959892]
[1745988371693,0.9862025,1812.0,1811.9,3.71959892]
[1745988374819,0.9862025,1812.0,1811.8,0.9]
[1745988375212,0.31027984,1811.9,1811.8,1.45]
[1745988375616,0.9862025,1811.9,1811.8,1.45]
[1745988376935,0.9862025,1811.9,1811.8,0.9]
[1745988386375,0.67592266,1811.9,1811.8,0.9]
[1745988386775,0.7809,1812.1,1811.8,1.36195989]
[1745988386973,0.67452464,1811.9,1811.8,1.36195989]
[1745988387579,0.7809,1812.1,1811.8,1.36195989]
[1745988387742,0.67452464,1811.9,1811.8,0.9]
[1745988387938,0.7809,1812.1,1811.8,0.9]
[1745988388143,0.67452464,1811.9,1811.8,0.9]
[1745988388357,0.3103616,1812.0,1811.8,0.9]
[1745988388574,0.67452464,1811.9,1811.8,0.9]
[1745988389343,0.7809,1812.1,1811.8,0.9]
[1745988389555,0.67452464,1811.9,1811.8,0.9]
[1745988389776,0.7809,1812.1,1811.8,0.9]
[1745988389951,0.67452464,1811.9,1811.8,0.9]
[1745988390156,0.7809,1812.1,1811.8,1.36195989]
[1745988390405,0.67452464,1811.9,1811.8,0.9]
[1745988390587,0.789,1812.2,1811.8,1.7196]
[1745988390786,0.67452464,1811.9,1811.8,7.78897154]
[1745988391117,0.3103571,1812.1,1812.0,1.3696]
[1745988391490,0.98508147,1812.1,1812.0,1.3696]
[1745988391809,0.67472437,1812.1,1812.0,2.22747727]
[1745988392181,6.15,1812.3,1812.0,2.22747727]
[1745988392613,0.67472437,1812.2,1812.0,2.22747727]
[1745988393817,0.67472437,1812.2,1812.1,8.5300995]
[1745988394024,0.67472437,1812.2,1812.1,11.58526664]
[1745988394238,6.15,1812.7,1812.5,1.3215]
[1745988394412,0.67565634,1812.6,1812.5,1.3215]
[1745988394607,6.2,1812.9,1812.5,1.3215]
[1745988394811,0.67565634,1812.8,1812.5,1.3215]
[1745988398137,0.67565634,1812.8,1812.5,6.83856553]
[1745988398334,0.67565634,1812.8,1812.7,0.55]
[1745988400006,0.67565634,1812.8,1812.7,1.45]
[1745988408166,0.67565634,1812.8,1812.7,6.96663264]
[1745988408460,0.67565634,1812.8,1812.7,1.45]
[1745988411757,0.67565634,1812.8,1812.7,7.75953264]
[1745988411935,0.67565634,1812.8,1812.7,9.33007391]
[1745988412123,0.05,1812.9,1812.8,6.30922833]
[1745988412325,0.73590392,1812.9,1812.8,8.05452098]
[1745988412653,0.73590392,1812.9,1812.8,7.99936859]
[1745988413069,0.73590392,1812.9,1812.8,8.05452168]
[1745988413369,0.73590392,1812.9,1812.8,10.13267032]
[1745988413779,0.05,1812.9,1812.8,10.13267032]
[1745988413935,0.05,1812.9,1812.8,10.68267032]
[1745988414138,0.05,1812.9,1812.8,18.16251728]
[1745988417273,0.05,1812.9,1812.8,15.16251728]
[1745988419248,0.05,1812.9,1812.8,18.16251728]
[1745988421969,0.759,1813.5,1813.2,0.55]
[1745988422373,0.62927911,1813.4,1813.2,6.12021878]
[1745988423101,0.62927911,1813.4,1813.2,0.55]
[1745988426900,0.62927911,1813.4,1813.3,6.11994988]
[1745988427218,6.15,1813.6,1813.3,6.94514988]
[1745988427369,0.63649419,1813.4,1813.3,6.89000725]
[1745988427568,6.15,1813.6,1813.3,6.89000725]
[1745988427768,6.15,1813.6,1813.4,0.0551393]
[1745988428023,0.63649419,1813.5,1813.4,0.0551393]
[1745988428199,0.63649419,1813.5,1813.3,1.3752]
[1745988429078,0.63649419,1813.5,1813.3,6.88996263]
[1745988429290,6.15,1813.6,1813.4,0.68899626]
[1745988429465,0.63742913,1813.5,1813.4,0.68899626]
[1745988433109,0.05,1813.9,1813.8,5.51328702]
[1745988433403,0.63424326,1813.9,1813.8,16.64445598]
[1745988433605,0.0465259,1814.3,1814.2,0.55]
[1745988433783,0.0465259,1814.3,1814.2,5.117]
[1745988434292,0.63076916,1814.3,1814.2,5.117]
[1745988434628,0.63076916,1814.3,1814.2,13.46280285]
[1745988434969,0.63076916,1814.3,1814.2,14.21380285]
[1745988435198,0.0465259,1814.3,1814.2,14.21380285]
[1745988435577,0.0465259,1814.3,1814.2,14.63697593]
[1745988436402,0.0465259,1814.3,1814.2,2.86776424]
[1745988436706,0.63704391,1814.3,1814.2,13.54749185]
[1745988436902,0.63704391,1814.3,1814.2,13.49238477]
[1745988437210,0.0465259,1814.3,1814.2,13.49238477]
[1745988438686,0.0465259,1814.3,1814.2,6.29017308]
[1745988439415,0.0465259,1814.3,1814.2,11.80224451]
[1745988439590,0.0465259,1814.3,1814.2,13.70269638]
[1745988440573,0.0465259,1814.3,1814.2,9.13669638]
[1745988440780,0.0465259,1814.3,1814.2,8.18962495]
[1745988441279,0.0465259,1814.3,1814.2,13.70169638]
[1745988443332,0.0465259,1814.3,1814.2,8.18962495]
[1745988443496,0.0465259,1814.3,1814.2,7.43862495]
[1745988443696,0.0465259,1814.3,1814.2,13.0058026]
[1745988443999,0.0465259,1814.3,1814.2,12.95069638]
[1745988444306,0.0465259,1814.3,1814.2,7.43862495]
[1745988444693,0.0465259,1814.3,1814.2,12.95069638]
[1745988444931,0.0465259,1814.3,1814.2,13.75419638]
[1745988445815,0.71806723,1814.9,1814.7,0.55]
[1745988446019,0.71806723,1814.9,1814.7,7.81718045]
[1745988446222,0.55395863,1814.8,1814.7,7.81718045]
[1745988446602,0.71806723,1814.9,1814.7,6.12704019]
[1745988446871,0.55395863,1814.8,1814.7,6.12704019]
[1745988447199,0.71806723,1814.9,1814.7,6.12704019]
[1745988447400,0.71806723,1814.9,1814.8,0.61270402]
[1745988448325,0.71806723,1814.9,1814.8,1.16270402]
[1745988453763,0.71806723,1814.9,1814.8,2.06270402]
[1745988457975,1.2743017,1814.9,1814.8,2.06270402]
[1745988458176,1.2743017,1814.9,1814.8,1.45]
[1745988460186,2.1051017,1814.9,1814.8,1.45]
[1745988461497,2.1051017,1814.9,1814.8,0.9]
[1745988466092,1.2743017,1814.9,1814.8,0.9]
[1745988469508,1.2743017,1814.9,1814.8,1.45]
[1745988472043,1.2743017,1814.9,1814.8,6.015]
[1745988472542,1.2743017,1814.9,1814.8,0.9]
[1745988472729,2.78553187,1814.9,1814.8,0.9]
[1745988472933,2.78553187,1814.9,1814.5,4.565]
[1745988472934,0.7688,1814.8,1814.5,4.565]
[1745988473163,0.55830955,1814.7,1814.5,4.565]
[1745988474244,0.55830955,1814.7,1814.4,4.565]
[1745988474429,0.7904,1814.6,1814.4,4.565]
[1745988474620,0.7904,1814.6,1814.4,5.465]
[1745988474810,0.55830955,1814.5,1814.4,5.465]
[1745988475943,0.55830955,1814.5,1814.4,0.9]
[1745988476247,0.7904,1814.6,1814.4,0.9]
[1745988477526,0.55830955,1814.5,1814.4,0.9]
[1745988486973,0.55830955,1814.5,1814.4,7.80437485]
[1745988487178,6.15,1814.8,1814.5,0.55]
[1745988487335,0.50806422,1814.7,1814.5,0.55]
[1745988489869,0.71806723,1814.9,1814.5,0.55]
[1745988490072,0.50840023,1814.6,1814.5,0.55]
[1745988490571,0.71806723,1814.9,1814.5,0.55]
[1745988490873,0.50840023,1814.8,1814.5,0.86872515]
[1745988492356,0.50840023,1814.8,1814.5,4.88472515]
[1745988494355,0.50840023,1814.8,1814.6,0.55]
[1745988494561,0.50840023,1814.8,1814.6,0.96433606]
[1745988495358,0.50840023,1814.8,1814.7,0.8278]
[1745988498358,0.50840023,1814.8,1814.7,1.3778]
[1745988501800,0.50840023,1814.8,1814.7,5.9458]
[1745988502003,0.50840023,1814.8,1814.7,6.58181361]
[1745988505263,0.50840023,1814.8,1814.7,5.75401361]
[1745988509397,0.45840023,1814.8,1814.7,5.75401361]
[1745988514402,0.45840023,1814.8,1814.7,0.55]
[1745988516512,0.45840023,1814.8,1814.6,4.98133606]
[1745988516818,1.51776723,1814.9,1814.6,4.567]
[1745988517003,0.50936102,1814.7,1814.6,5.117]
[1745988517201,1.51776723,1814.9,1814.6,5.117]
[1745988517388,0.50936102,1814.7,1814.6,5.117]
[1745988517589,1.51776723,1814.9,1814.6,5.117]
[1745988517986,0.50936102,1814.8,1814.6,5.117]
[1745988518315,0.50936102,1814.8,1814.7,0.55]
[1745988525447,1.29366102,1814.8,1814.5,4.03832407]
[1745988525771,1.29366102,1814.8,1814.5,8.58732407]
[1745988528842,1.29366102,1814.8,1814.5,8.64242894]
[1745988529445,1.29366102,1814.8,1814.5,4.92283002]
[1745988529649,1.29366102,1814.8,1814.6,0.492283]
[1745988531252,1.29366102,1814.8,1814.5,0.55]
[1745988531433,0.50936102,1814.8,1814.4,4.61959892]
[1745988531613,0.7981,1814.7,1814.4,4.61959892]
[1745988531813,0.50962978,1814.6,1814.4,4.61959892]
[1745988532025,0.7981,1814.7,1814.4,4.61959892]
[1745988532226,0.50855495,1814.6,1814.4,4.61959892]
[1745988532440,0.7981,1814.7,1814.4,4.61959892]
[1745988532621,0.50855495,1814.6,1814.4,4.61959892]
[1745988532824,0.7981,1814.7,1814.4,4.61959892]
[1745988533043,0.50855495,1814.6,1814.4,4.61959892]
[1745988533240,0.7981,1814.7,1814.4,4.61959892]
[1745988533422,0.50855495,1814.6,1814.4,4.61959892]
[1745988533624,0.7981,1814.7,1814.4,4.61959892]
[1745988533832,0.50855495,1814.6,1814.4,4.61959892]
[1745988534143,0.7981,1814.7,1814.5,1.69014026]
[1745988534323,1.54056723,1814.9,1814.5,1.69014026]
[1745988534523,0.50855495,1814.6,1814.5,1.69014026]
[1745988534723,1.54056723,1814.9,1814.5,1.69014026]
[1745988535118,0.50855495,1814.8,1814.4,5.45885881]
[1745988535318,0.50855495,1814.8,1814.4,4.63645881]
[1745988536148,0.50855495,1814.8,1814.4,0.91685989]
[1745988536653,0.7756,1814.7,1814.4,0.91685989]
[1745988537316,0.50855495,1814.6,1814.4,0.91685989]
[1745988537649,0.7756,1814.7,1814.5,0.9]
[1745988537851,0.50855495,1814.6,1814.5,0.9]
[1745988538050,0.7756,1814.7,1814.5,0.9]
[1745988538349,0.50855495,1814.6,1814.5,0.9]
[1745988538650,0.7756,1814.7,1814.5,0.9]
[1745988538850,0.50855495,1814.6,1814.5,0.9]
[1745988539054,0.7756,1814.7,1814.5,0.9]
[1745988539255,0.50855495,1814.6,1814.5,0.9]
[1745988539462,0.7756,1814.7,1814.5,0.9]
[1745988539625,0.50855495,1814.6,1814.5,0.9]
[1745988540056,0.7756,1814.7,1814.5,0.9]
[1745988540244,0.50855495,1814.6,1814.5,0.9]
[1745988540555,0.7756,1814.7,1814.5,0.9]
[1745988540794,0.50855495,1814.6,1814.5,0.9]
[1745988541456,0.7756,1814.7,1814.5,0.9]
[1745988541619,0.50855495,1814.6,1814.5,0.9]
[1745988541826,0.7756,1814.7,1814.5,0.9]
[1745988542034,0.50855495,1814.6,1814.5,0.9]
[1745988542355,0.7756,1814.7,1814.5,0.9]
[1745988542567,0.50680825,1814.6,1814.5,0.9]
[1745988542853,8.51085638,1814.6,1814.3,3.71959892]
[1745988543051,1.35755793,1814.5,1814.3,3.71959892]
[1745988543258,0.7671,1814.4,1814.3,3.71959892]
[1745988543723,1.27357229,1814.4,1814.3,3.71959892]
[1745988544762,1.27357229,1814.4,1814.1,3.71959892]
[1745988545968,0.7994,1814.3,1814.1,3.71959892]
[1745988546353,0.50264197,1814.2,1814.1,3.71959892]
[1745988546872,1.30204197,1814.2,1814.1,3.71959892]
[1745988547771,6.8141134,1814.2,1814.1,3.71959892]
[1745988548081,0.7665,1814.1,1813.8,3.71959892]
[1745988548242,0.50109595,1814.0,1813.8,3.71959892]
[1745988548443,0.7665,1813.9,1813.8,3.71959892]
[1745988548849,1.26759595,1813.9,1813.8,3.71959892]
[1745988549386,7.41759595,1813.9,1813.8,3.71959892]
[1745988551105,7.41759595,1813.9,1813.7,0.6]
[1745988552579,1.26759595,1813.9,1813.7,0.6]
[1745988552748,1.9456382,1813.9,1813.7,0.6]
[1745988553677,7.45870864,1813.9,1813.7,0.6]
[1745988553977,1.9456382,1813.9,1813.7,0.6]
[1745988554145,7.45868844,1813.9,1813.7,0.6]
[1745988555076,1.9456382,1813.9,1813.7,0.6]
[1745988557698,7.45880654,1813.9,1813.7,0.6]
[1745988557853,1.49598065,1813.8,1813.7,0.6]
[1745988558047,1.99519396,1813.8,1813.7,0.6]
[1745988558249,8.14519396,1813.8,1813.7,0.6]
[1745988559990,13.65848098,1813.8,1813.7,0.6]
[1745988560500,8.14519396,1813.8,1813.7,0.6]
[1745988561206,13.65848098,1813.8,1813.7,0.6]
[1745988561859,8.14519396,1813.8,1813.7,0.6]
[1745988563585,13.65848098,1813.8,1813.7,0.6]
[1745988563789,8.14519396,1813.8,1813.7,0.6]
[1745988569442,6.64921331,1813.8,1813.7,0.6]
[1745988578964,12.16250033,1813.8,1813.7,0.6]
[1745988579373,12.93960033,1813.8,1813.7,0.6]
[1745988579731,15.93960033,1813.8,1813.7,0.6]
[1745988580067,9.29084131,1813.7,1813.1,0.757]
[1745988580271,6.00503715,1813.6,1813.1,1.3434]
[1745988580568,5.51438254,1813.5,1813.1,0.757]
[1745988580771,0.7564,1813.4,1812.9,0.7967]
[1745988581273,0.48892332,1813.3,1812.9,0.7967]
[1745988581481,0.7564,1813.4,1812.9,0.7967]
[1745988581638,0.48892332,1813.3,1812.9,0.7967]
[1745988581838,1.79681652,1813.4,1812.9,0.7967]
[1745988582139,0.48892332,1813.3,1812.9,0.7967]
[1745988582339,1.79681652,1813.4,1812.9,0.7967]
[1745988582552,0.48892332,1813.3,1812.9,0.7967]
[1745988582871,1.79681652,1813.4,1812.9,0.7967]
[1745988583050,0.48892332,1813.3,1812.9,0.7967]
[1745988583373,1.79681652,1813.4,1812.9,0.7967]
[1745988583842,0.48892332,1813.3,1812.9,0.7967]
[1745988584043,1.79681652,1813.4,1812.9,0.7967]
[1745988584242,0.48892332,1813.3,1812.9,0.7967]
[1745988584444,1.79681652,1813.4,1812.9,0.7967]
[1745988584657,6.63892332,1813.3,1812.9,0.7967]
[1745988586790,7.4824973,1813.3,1812.9,0.7967]
[1745988590793,6.63892332,1813.3,1812.9,0.7967]
[1745988601787,6.63892332,1813.3,1813.1,0.7733]
[1745988601990,0.48892332,1813.3,1813.2,3.01344026]
[1745988602317,10.707,1813.7,1813.3,0.55]
[1745988602614,10.707,1813.7,1813.4,0.7688]
[1745988602803,0.48488567,1813.6,1813.4,0.7688]
[1745988603176,6.15,1813.7,1813.4,0.7688]
[1745988603406,0.48488567,1813.5,1813.4,0.7688]
[1745988603613,6.15,1813.7,1813.4,0.7688]
[1745988604110,0.48488567,1813.6,1813.4,0.7688]
[1745988604312,6.15,1813.7,1813.4,0.7688]
[1745988604610,0.48488567,1813.5,1813.4,0.7688]
[1745988605218,6.15,1813.7,1813.4,0.7688]
[1745988605511,0.48488567,1813.6,1813.4,0.7688]
[1745988605717,6.15,1813.7,1813.2,0.7541]
[1745988605908,0.48676999,1813.5,1813.2,0.7541]
[1745988606209,6.98624868,1813.6,1813.2,0.7541]
[1745988606416,0.48676999,1813.4,1813.2,0.7541]
[1745988606715,0.48676999,1813.3,1813.2,0.7541]
[1745988606894,12.4638716,1813.7,1813.2,0.7541]
[1745988607095,0.48676999,1813.3,1813.2,0.7541]
[1745988607294,6.9501,1813.7,1813.2,0.7541]
[1745988607498,0.48676999,1813.3,1813.2,0.7541]
[1745988607696,6.9501,1813.7,1813.2,0.7541]
[1745988607906,0.48676999,1813.3,1813.2,0.7541]
[1745988608215,6.9501,1813.7,1813.2,0.7541]
[1745988608417,0.48676999,1813.3,1813.2,0.7541]